[Event "LEM Niedersachsen-B-Open 2025"]
[Site "Verden"]
[Date "2025.01.05"]
[Round "7.24"]
[White "Bartel, Reinhard"]
[Black "Frese, Immo"]
[Result "1/2-1/2"]
[ECO "E14"]
[WhiteElo "1673"]
[BlackElo "1756"]
[Annotator "NA RC"]
[PlyCount "100"]
[EventDate "2024.12.27"]
[EventType "swiss"]
[EventCountry "GER"]
[SourceTitle "playchess.com"]
[Source "ChessBase"]
[SourceQuality "1"]
[TimeControl "40/5400+30:1800+30"]

1. d4 {[%emt 0:00:04]} d5 {[%emt 0:00:09]} 2. c4 {[%emt 0:00:08]} e6 {[%emt 0:00:08]} 3. Nf3 {[%emt 0:00:08]} Nf6 {[%emt 0:00:13]} 4. e3 {[%emt 0:00:49]} Nbd7 {[%emt 0:01:28]} 5. Nc3 {[%emt 0:03:55]} Be7 {[%emt 0:00:52]} 6. b3 {[%emt 0:01:47]} O-O {[%emt 0:02:40]} 7. Bb2 {[%emt 0:00:18]} b6 {[%emt 0:01:09]} 8. cxd5 {[%emt 0:01:10]} exd5 {[%emt 0:00:21]} 9. Rc1 {[%emt 0:01:51]} Bb7 {[%emt 0:08:55]} 10. Bd3 {[%emt 0:03:15]} Rc8 {[%emt 0:04:47]} 11. O-O {[%emt 0:00:42]} c5 {[%emt 0:02:51]} 12. Bf5 {[%emt 0:03:21]} g6 {[%emt 0:07:15]} 13. Bh3 {[%emt 0:03:42]} a6 {[%emt 0:09:50]} 14. Ne5 {[%emt 0:02:41]} Rc7 {[%emt 0:04:18]} 15. Nxd7 {[%emt 0:04:08]} Nxd7 {[%emt 0:00:48]} 16. Na4 {[%emt 0:10:23]} f5 {[%emt 0:05:47]} 17. dxc5 {[%emt 0:05:03]} b5 {[%emt 0:04:07]} 18. c6 {[%emt 0:09:15]} Nb8 {[%emt 0:14:27]} 19. cxb7 {[%emt 0:08:05]} Rxc1 {[%emt 0:00:13]} 20. Qxc1 {[%emt 0:02:09]} bxa4 {[%emt 0:00:14]} 21. Rd1 {[%emt 0:06:28]} Qd7 {[%emt 0:03:38]} 22. e4 {[%emt 0:02:59]} Qxb7 {[%emt 0:02:46]} 23. exd5 {[%emt 0:02:08]} axb3 {[%emt 0:01:59]} 24. d6 {[%emt 0:02:24]} Bf6 {[%emt 0:01:14]} 25. Qc4+ {[%emt 0:01:34]} Qf7 {[%emt 0:06:20]} 26. Qxf7+ {[%emt 0:00:53]} Kxf7 {[%emt 0:00:17]} 27. Bxf6 {[%emt 0:00:29]} Kxf6 {[%emt 0:00:09]} 28. axb3 {[%emt 0:24:41]} Rd8 {[%emt 0:01:19]} 29. g4 {[%emt 0:00:00]} fxg4 {[%emt 0:04:07]} 30. Bxg4 {[%emt 0:00:00]} Nd7 {[%emt 0:01:07]} 31. f4 {[%emt 0:00:00]} Nc5 {[%emt 0:02:29]} 32. b4 {[%emt 0:00:00]} Ne6 {[%emt 0:04:41]} 33. Be2 {[%emt 0:00:00]} Nxf4 {[%emt 0:01:09]} 34. Bxa6 {[%emt 0:00:00]} Ke6 {[%emt 0:00:41]} 35. Bc4+ {[%emt 0:00:00]} Kd7 {[%emt 0:01:24]} 36. Bb5+ {[%emt 0:00:00]} Ke6 {[%emt 0:01:00]} 37. d7 {[%emt 0:00:00]} Nh5 {[%emt 0:02:00]} 38. Re1+ {[%emt 0:00:00]} Kd6 {[%emt 0:00:24]} 39. Re8 {[%emt 0:00:00]} Kc7 {[%emt 0:00:22]} 40. Kf2 {[%emt 0:05:14]} Nf6 {[%emt 0:01:20]} 41. Rxd8 {[%emt 0:01:06]} Kxd8 {[%emt 0:00:14]} 42. Kf3 {[%emt 0:00:58]} Nd5 {[%emt 0:00:19]} 43. Ke4 {[%emt 0:01:37]} Nxb4 {[%emt 0:00:25]} 44. Ke5 {[%emt 0:00:29]} Nc2 {[%emt 0:02:47]} 45. Kf6 {[%emt 0:01:13]} Nd4 {[%emt 0:01:16]} 46. Ba4 {[%emt 0:00:31]} Nf3 {[%emt 0:03:12]} 47. h3 {[%emt 0:00:57]} Ng1 {[%emt 0:01:21]} 48. h4 {[%emt 0:01:57]} Nf3 {[%emt 0:00:35]} 49. h5 {[%emt 0:01:50]} gxh5 {[%emt 0:00:12]} 50. Bd1 {[%emt 0:00:11]} Kxd7 {[%emt 0:00:58]} 1/2-1/2

[Event "LEM Niedersachsen-B-Open 2025"]
[Site "Verden"]
[Date "2025.01.05"]
[Round "7.25"]
[White "Laun, Kurt"]
[Black "Golke, Philipp"]
[Result "1-0"]
[ECO "A50"]
[WhiteElo "1673"]
[BlackElo "1728"]
[Annotator "NA RC"]
[PlyCount "81"]
[EventDate "2024.12.27"]
[EventType "swiss"]
[EventCountry "GER"]
[SourceTitle "playchess.com"]
[Source "ChessBase"]
[SourceQuality "1"]
[TimeControl "40/5400+30:1800+30"]

1. c4 {[%emt 0:00:06]} Nf6 {[%emt 0:00:06]} 2. Nc3 {[%emt 0:00:13]} e6 {[%emt 0:00:04]} 3. Nf3 {[%emt 0:00:31]} b6 {[%emt 0:00:40]} 4. e4 {[%emt 0:01:15]} d6 {[%emt 0:00:29]} 5. d4 {[%emt 0:01:41]} Nbd7 {[%emt 0:00:10]} 6. Be2 {[%emt 0:01:49]} Bb7 {[%emt 0:00:09]} 7. Qc2 {[%emt 0:00:27]} Be7 {[%emt 0:00:42]} 8. O-O {[%emt 0:00:19]} c5 {[%emt 0:05:47]} 9. d5 {[%emt 0:02:38]} e5 {[%emt 0:00:49]} 10. a3 {[%emt 0:02:44]} a6 {[%emt 0:00:43]} 11. Rb1 {[%emt 0:01:24]} Qc7 {[%emt 0:02:04]} 12. Bg5 {[%emt 0:01:03]} h6 {[%emt 0:00:16]} 13. Bd2 {[%emt 0:00:56]} g5 {[%emt 0:01:26]} 14. h3 {[%emt 0:02:44]} O-O-O {[%emt 0:01:02]} 15. Nh2 {[%emt 0:02:31]} Rdg8 {[%emt 0:02:31]} 16. Nd1 {[%emt 0:03:42]} Qd8 {[%emt 0:02:42]} 17. Ne3 {[%emt 0:01:00]} h5 {[%emt 0:00:20]} 18. Nf5 {[%emt 0:01:51]} g4 {[%emt 0:04:04]} 19. h4 {[%emt 0:00:53]} Ne8 {[%emt 0:00:28]} 20. g3 {[%emt 0:00:59]} Ng7 {[%emt 0:00:39]} 21. Nxe7+ {[%emt 0:03:14]} Qxe7 {[%emt 0:00:07]} 22. b4 {[%emt 0:01:26]} Rf8 {[%emt 0:02:06]} 23. Bd3 {[%emt 0:02:43]} f5 {[%emt 0:04:00]} 24. exf5 {[%emt 0:02:50]} Qf6 {[%emt 0:00:05]} 25. Bg5 {[%emt 0:03:26]} Qf7 {[%emt 0:00:17]} 26. bxc5 {[%emt 0:01:18]} dxc5 {[%emt 0:00:08]} 27. f6 {[%emt 0:01:40]} Nxf6 {[%emt 0:00:19]} 28. Rxb6 {[%emt 0:00:55]} Nd7 {[%emt 0:00:51]} 29. Rb2 {[%emt 0:06:30]} Nf5 {[%emt 0:00:05]} 30. Bxf5 {[%emt 0:05:03]} Qxf5 {[%emt 0:00:06]} 31. Qe2 {[%emt 0:04:20]} e4 {[%emt 0:01:00]} 32. Rfb1 {[%emt 0:04:00]} Ba8 {[%emt 0:00:23]} 33. Nf1 {[%emt 0:01:48]} Ne5 {[%emt 0:01:46]} 34. Ne3 {[%emt 0:04:08]} Nf3+ {[%emt 0:00:06]} 35. Kh1 {[%emt 0:00:21]} Qe5 {[%emt 0:00:02]} 36. Ng2 {[%emt 0:06:51]} Rfg8 {[%emt 0:00:49]} 37. Bf4 {[%emt 0:00:33]} Qc3 {[%emt 0:01:28]} 38. Qxe4 {[%emt 0:02:48]} Nd4 {[%emt 0:00:01]} 39. Rb8+ {[%emt 0:02:30]} Kd7 {[%emt 0:00:06]} 40. Rxg8 {[%emt 0:00:09]} Rxg8 {[%emt 0:00:21]} 41. Qh7+ {[%emt 0:30:15]} 1-0

[Event "LEM Niedersachsen-B-Open 2025"]
[Site "Verden"]
[Date "2025.01.05"]
[Round "7.26"]
[White "Kurzova, Marianna"]
[Black "Warns, Harald"]
[Result "1-0"]
[ECO "B03"]
[WhiteElo "1654"]
[BlackElo "1727"]
[Annotator "NA RC"]
[PlyCount "47"]
[EventDate "2024.12.27"]
[EventType "swiss"]
[EventCountry "GER"]
[SourceTitle "playchess.com"]
[Source "ChessBase"]
[SourceQuality "1"]
[TimeControl "40/5400+30:1800+30"]

1. e4 {[%emt 0:00:02]} Nf6 {[%emt 0:00:07]} 2. e5 {[%emt 0:00:15]} Nd5 {[%emt 0:00:01]} 3. c4 {[%emt 0:00:13]} Nb6 {[%emt 0:00:01]} 4. d4 {[%emt 0:00:08]} d6 {[%emt 0:00:02]} 5. exd6 {[%emt 0:01:50]} exd6 {[%emt 0:00:02]} 6. d5 {[%emt 0:00:14]} Be7 {[%emt 0:00:40]} 7. h3 {[%emt 0:00:18]} Bf6 {[%emt 0:01:20]} 8. Qc2 {[%emt 0:00:39]} g6 {[%emt 0:01:10]} 9. Nf3 {[%emt 0:00:11]} Bf5 {[%emt 0:00:32]} 10. Bd3 {[%emt 0:00:25]} Qe7+ {[%emt 0:00:24]} 11. Be3 {[%emt 0:00:17]} Bxd3 {[%emt 0:00:42]} 12. Qxd3 {[%emt 0:00:07]} Bxb2 {[%emt 0:02:49]} 13. O-O {[%emt 0:00:06]} N8d7 {[%emt 0:13:18]} 14. Nc3 {[%emt 0:00:47]} Bxa1 {[%emt 0:00:30]} 15. Rxa1 {[%emt 0:00:57]} Ne5 {[%emt 0:00:34]} 16. Nxe5 {[%emt 0:00:39]} dxe5 {[%emt 0:00:38]} 17. c5 {[%emt 0:00:32]} Nc8 {[%emt 0:10:15]} 18. Qb5+ {[%emt 0:02:20]} c6 {[%emt 0:01:09]} 19. dxc6 {[%emt 0:00:10]} b6 {[%emt 0:02:46]} 20. cxb6 {[%emt 0:01:16]} Nxb6 {[%emt 0:02:39]} 21. Bxb6 {[%emt 0:00:46]} Rc8 {[%emt 0:04:43]} 22. Nd5 {[%emt 0:01:44]} Qd6 {[%emt 0:00:40]} 23. c7+ {[%emt 0:00:19]} Kf8 {[%emt 0:00:28]} 24. Bc5 {[%emt 0:00:13]} 1-0

[Event "LEM Niedersachsen-B-Open 2025"]
[Site "Verden"]
[Date "2025.01.05"]
[Round "7.29"]
[White "Grunwald, Hannes Leon"]
[Black "Zhang, Jiahui"]
[Result "1-0"]
[ECO "B13"]
[WhiteElo "1702"]
[BlackElo "1519"]
[Annotator "NA RC"]
[PlyCount "67"]
[EventDate "2024.12.27"]
[EventType "swiss"]
[EventCountry "GER"]
[SourceTitle "playchess.com"]
[Source "ChessBase"]
[SourceQuality "1"]
[TimeControl "40/5400+30:1800+30"]

1. e4 {[%emt 0:00:03]} c6 {[%emt 0:00:07]} 2. d4 {[%emt 0:00:07]} d5 {[%emt 0:00:06]} 3. exd5 {[%emt 0:00:13]} cxd5 {[%emt 0:00:08]} 4. Bd3 {[%emt 0:00:09]} Nc6 {[%emt 0:01:06]} 5. c3 {[%emt 0:00:42]} Nf6 {[%emt 0:00:11]} 6. Bf4 {[%emt 0:00:51]} e6 {[%emt 0:03:49]} 7. Nf3 {[%emt 0:00:41]} Bd6 {[%emt 0:00:38]} 8. Bxd6 {[%emt 0:02:14]} Qxd6 {[%emt 0:00:26]} 9. O-O {[%emt 0:00:44]} O-O {[%emt 0:00:39]} 10. Re1 {[%emt 0:00:29]} Re8 {[%emt 0:00:50]} 11. Ne5 {[%emt 0:02:59]} Nd7 {[%emt 0:03:41]} 12. Bxh7+ {[%emt 0:04:16]} Kf8 {[%emt 0:02:56]} 13. Nxd7+ {[%emt 0:09:42]} Bxd7 {[%emt 0:03:51]} 14. Bc2 {[%emt 0:03:31]} Ke7 {[%emt 0:04:31]} 15. Nd2 {[%emt 0:03:34]} Rh8 {[%emt 0:04:18]} 16. h3 {[%emt 0:02:07]} Rag8 {[%emt 0:07:50]} 17. Nf3 {[%emt 0:01:23]} f6 {[%emt 0:03:32]} 18. c4 {[%emt 0:01:24]} Kd8 {[%emt 0:02:22]} 19. cxd5 {[%emt 0:01:43]} exd5 {[%emt 0:00:25]} 20. Kf1 {[%emt 0:00:17]} g5 {[%emt 0:00:57]} 21. Qd3 {[%emt 0:06:11]} g4 {[%emt 0:05:28]} 22. hxg4 {[%emt 0:00:52]} Bxg4 {[%emt 0:05:44]} 23. Ba4 {[%emt 0:03:59]} Rh1+ {[%emt 0:01:20]} 24. Ke2 {[%emt 0:01:18]} Re8+ {[%emt 0:00:28]} 25. Kd2 {[%emt 0:00:15]} Qf4+ {[%emt 0:08:58]} 26. Kc3 {[%emt 0:00:22]} Bf5 {[%emt 0:06:17]} 27. Rxe8+ {[%emt 0:00:12]} Kxe8 {[%emt 0:02:34]} 28. Qe2+ {[%emt 0:00:38]} Kd7 {[%emt 0:00:53]} 29. Bxc6+ {[%emt 0:00:10]} bxc6 {[%emt 0:00:26]} 30. Rxh1 {[%emt 0:00:08]} Qc7 {[%emt 0:00:32]} 31. b4 {[%emt 0:01:55]} a5 {[%emt 0:00:16]} 32. a3 {[%emt 0:00:43]} axb4+ {[%emt 0:00:16]} 33. axb4 {[%emt 0:00:09]} Qa7 {[%emt 0:00:13]} 34. Kb3 {[%emt 0:01:12]} 1-0

[Event "LEM Niedersachsen-B-Open 2025"]
[Site "Verden"]
[Date "2025.01.05"]
[Round "7.31"]
[White "Koschel, Katharina"]
[Black "Kretschmer, Tom"]
[Result "0-1"]
[ECO "D00"]
[WhiteElo "1671"]
[BlackElo "1776"]
[Annotator "NA RC"]
[PlyCount "44"]
[EventDate "2024.12.27"]
[EventType "swiss"]
[EventCountry "GER"]
[SourceTitle "playchess.com"]
[Source "ChessBase"]
[SourceQuality "1"]
[TimeControl "40/5400+30:1800+30"]

1. d4 {[%emt 0:00:04]} d5 {[%emt 0:00:04]} 2. Nc3 {[%emt 0:00:17]} Nc6 {[%emt 0:01:58]} 3. Bf4 {[%emt 0:05:58]} a6 {[%emt 0:02:22]} 4. e3 {[%emt 0:00:17]} Nf6 {[%emt 0:00:40]} 5. Bd3 {[%emt 0:01:20]} Bg4 {[%emt 0:01:29]} 6. f3 {[%emt 0:06:16]} Bh5 {[%emt 0:00:07]} 7. Nge2 {[%emt 0:01:24]} Bg6 {[%emt 0:00:08]} 8. O-O {[%emt 0:03:33]} e6 {[%emt 0:00:44]} 9. Bg3 {[%emt 0:02:08]} Nh5 {[%emt 0:00:57]} 10. Bf2 {[%emt 0:03:39]} Nb4 {[%emt 0:07:23]} 11. Bxg6 {[%emt 0:04:58]} hxg6 {[%emt 0:01:01]} 12. a3 {[%emt 0:02:06]} Nc6 {[%emt 0:00:02]} 13. e4 {[%emt 0:01:28]} Bd6 {[%emt 0:08:09]} 14. e5 {[%emt 0:13:36]} Nxe5 {[%emt 0:02:18]} 15. dxe5 {[%emt 0:00:32]} Bxe5 {[%emt 0:00:03]} 16. Bg3 {[%emt 0:12:28]} Nxg3 {[%emt 0:08:05]} 17. hxg3 {[%emt 0:02:00]} Qd6 {[%emt 0:03:42]} 18. Kf2 {[%emt 0:08:09]} Qb6+ {[%emt 0:03:48]} 19. Ke1 {[%emt 0:01:04]} Qxb2 {[%emt 0:00:37]} 20. Kd2 {[%emt 0:05:28]} d4 {[%emt 0:03:07]} 21. Ne4 {[%emt 0:05:21]} d3 {[%emt 0:00:48]} 22. Nf4 {[%emt 0:06:10]} dxc2 {[%emt 0:01:05]} 0-1

[Event "LEM Niedersachsen-B-Open 2025"]
[Site "Verden"]
[Date "2025.01.05"]
[Round "7.32"]
[White "Weist, Hartmut"]
[Black "Wachtel, Edwin"]
[Result "0-1"]
[ECO "B73"]
[WhiteElo "1751"]
[BlackElo "1705"]
[Annotator "NA RC"]
[PlyCount "58"]
[EventDate "2024.12.27"]
[EventType "swiss"]
[EventCountry "GER"]
[SourceTitle "playchess.com"]
[Source "ChessBase"]
[SourceQuality "1"]
[TimeControl "40/5400+30:1800+30"]

1. e4 {[%emt 0:00:05]} c5 {[%emt 0:01:07]} 2. Nf3 {[%emt 0:00:10]} d6 {[%emt 0:00:37]} 3. d4 {[%emt 0:00:14]} cxd4 {[%emt 0:00:57]} 4. Nxd4 {[%emt 0:00:06]} Nf6 {[%emt 0:01:32]} 5. Nc3 {[%emt 0:00:28]} g6 {[%emt 0:01:21]} 6. Be2 {[%emt 0:01:22]} Bg7 {[%emt 0:01:10]} 7. Be3 {[%emt 0:00:28]} Bd7 {[%emt 0:01:16]} 8. Qd2 {[%emt 1:31:37]} Nc6 {[%emt 0:01:15]} 9. O-O {[%emt 0:00:00]} O-O {[%emt 0:01:54]} 10. Nxc6 {[%emt 0:01:00]} bxc6 {[%emt 0:00:50]} 11. Rab1 {[%emt 0:00:00]} Qc7 {[%emt 0:04:31]} 12. Bh6 {[%emt 0:00:00]} Rfd8 {[%emt 0:03:01]} 13. Bxg7 {[%emt 0:00:00]} Kxg7 {[%emt 0:00:19]} 14. f3 {[%emt 0:00:00]} a6 {[%emt 0:00:48]} 15. Rfd1 {[%emt 0:00:00]} d5 {[%emt 0:00:54]} 16. exd5 {[%emt 0:00:00]} cxd5 {[%emt 0:00:15]} 17. Qe3 {[%emt 0:00:00]} Bf5 {[%emt 1:17:13]} 18. Qd2 {[%emt 0:00:00]} d4 {[%emt 0:00:00]} 19. Ne4 {[%emt 0:00:00]} Nxe4 {[%emt 0:00:00]} 20. fxe4 {[%emt 0:00:00]} Bxe4 {[%emt 0:00:00]} 21. Bd3 {[%emt 0:00:00]} Bxd3 {[%emt 0:00:00]} 22. Qxd3 {[%emt 0:00:00]} e5 {[%emt 0:00:00]} 23. Rd2 {[%emt 0:00:00]} f5 {[%emt 0:03:00]} 24. Rbd1 {[%emt 0:00:00]} Qc5 {[%emt 0:00:00]} 25. Kf1 {[%emt 0:00:00]} Rd6 {[%emt 0:00:00]} 26. c3 {[%emt 0:00:00]} Rad8 {[%emt 0:00:00]} 27. cxd4 {[%emt 0:00:00]} Rxd4 {[%emt 0:00:00]} 28. Qe3 {[%emt 0:00:00]} Rf4+ {[%emt 0:00:00]} 29. Ke2 Re4 {[%emt 0:00:00]} 0-1

[Event "LEM Niedersachsen-B-Open 2025"]
[Site "Verden"]
[Date "2025.01.05"]
[Round "7.33"]
[White "Bartels, Jens"]
[Black "Axt, Christian"]
[Result "0-1"]
[ECO "C01"]
[WhiteElo "1705"]
[BlackElo "1819"]
[Annotator "NA RC"]
[PlyCount "31"]
[EventDate "2024.12.27"]
[EventType "swiss"]
[EventCountry "GER"]
[SourceTitle "playchess.com"]
[Source "ChessBase"]
[SourceQuality "1"]
[TimeControl "40/5400+30:1800+30"]

1. Nf3 {[%emt 0:00:17]} b5 {[%emt 0:00:06]} 2. d4 {[%emt 0:00:32]} e6 {[%emt 0:00:29]} 3. e4 {[%emt 0:00:28]} a6 {[%emt 0:00:26]} 4. c4 {[%emt 0:01:08]} Bb7 {[%emt 0:02:29]} 5. cxb5 {[%emt 0:01:50]} Bxe4 {[%emt 0:00:46]} 6. bxa6 {[%emt 0:02:22]} Nxa6 {[%emt 0:00:42]} 7. Bxa6 {[%emt 0:00:49]} Rxa6 {[%emt 0:00:34]} 8. Qe2 {[%emt 0:00:36]} Bb7 {[%emt 0:00:13]} 9. d5 {[%emt 0:06:31]} Nf6 {[%emt 0:00:35]} 10. Bg5 {[%emt 0:00:43]} Be7 {[%emt 0:01:02]} 11. Nc3 {[%emt 0:00:55]} O-O {[%emt 0:06:40]} 12. Rd1 {[%emt 0:02:09]} exd5 {[%emt 0:02:43]} 13. Nxd5 {[%emt 0:03:58]} Nxd5 {[%emt 0:04:36]} 14. Rxd5 {[%emt 0:01:06]} Re6 {[%emt 1:16:09]} 15. Be3 {[%emt 0:01:45]} Bxd5 {[%emt 0:00:00]} 16. a3 {[%emt 0:01:06]} 0-1

[Event "LEM Niedersachsen-B-Open 2025"]
[Site "Verden"]
[Date "2025.01.05"]
[Round "7.34"]
[White "Torkler, Wolfgang"]
[Black "Gaertner, Lars-Florian"]
[Result "1/2-1/2"]
[ECO "C44"]
[WhiteElo "1716"]
[BlackElo "1676"]
[Annotator "NA RC"]
[PlyCount "68"]
[EventDate "2024.12.27"]
[EventType "swiss"]
[EventCountry "GER"]
[SourceTitle "playchess.com"]
[Source "ChessBase"]
[SourceQuality "1"]
[TimeControl "40/5400+30:1800+30"]

1. e4 {[%emt 0:00:01]} e5 {[%emt 0:00:08]} 2. d3 {[%emt 0:00:14]} Nf6 {[%emt 0:00:33]} 3. Nf3 {[%emt 0:00:19]} Nc6 {[%emt 0:01:19]} 4. g3 {[%emt 0:00:48]} d5 {[%emt 0:01:14]} 5. Nbd2 {[%emt 0:00:18]} Bg4 {[%emt 0:01:58]} 6. h3 {[%emt 0:00:13]} Be6 {[%emt 0:04:13]} 7. Bg2 {[%emt 0:01:10]} Qd7 {[%emt 0:01:51]} 8. b3 {[%emt 0:01:39]} Bb4 {[%emt 0:06:27]} 9. Ng5 {[%emt 0:07:51]} Bc3 {[%emt 0:06:49]} 10. Rb1 {[%emt 0:00:21]} O-O-O {[%emt 0:02:01]} 11. Nxe6 {[%emt 0:00:14]} fxe6 {[%emt 0:00:33]} 12. O-O {[%emt 0:00:17]} Bxd2 {[%emt 0:08:58]} 13. exd5 {[%emt 0:04:32]} exd5 {[%emt 0:07:52]} 14. Bxd2 {[%emt 0:00:43]} Rhf8 {[%emt 0:01:27]} 15. b4 {[%emt 0:03:19]} e4 {[%emt 0:03:27]} 16. b5 {[%emt 0:02:04]} Nd4 {[%emt 0:01:24]} 17. Be3 {[%emt 0:01:19]} Nxb5 {[%emt 0:02:08]} 18. Rb3 {[%emt 0:03:34]} a6 {[%emt 0:03:23]} 19. Qe2 {[%emt 0:02:30]} Rde8 {[%emt 0:02:41]} 20. d4 {[%emt 0:05:28]} Nd6 {[%emt 0:03:31]} 21. Rfb1 {[%emt 0:00:36]} Qc6 {[%emt 0:06:41]} 22. h4 {[%emt 0:03:26]} Nd7 {[%emt 0:02:35]} 23. Bh3 {[%emt 0:00:55]} Nb5 {[%emt 0:05:05]} 24. Qd2 {[%emt 0:03:47]} Kb8 {[%emt 0:06:09]} 25. Bxd7 {[%emt 0:02:13]} Qxd7 {[%emt 0:00:45]} 26. a4 {[%emt 0:00:17]} Nd6 {[%emt 0:02:55]} 27. Bf4 {[%emt 0:00:25]} b6 {[%emt 0:01:01]} 28. Qa5 {[%emt 0:01:01]} Rxf4 {[%emt 0:03:19]} 29. gxf4 {[%emt 0:05:34]} Nc4 {[%emt 0:01:33]} 30. Qxa6 {[%emt 0:02:34]} e3 {[%emt 0:00:52]} 31. fxe3 {[%emt 0:04:28]} Qg4+ {[%emt 0:00:16]} 32. Kf2 {[%emt 0:00:11]} Qxh4+ {[%emt 0:00:29]} 33. Ke2 {[%emt 0:00:12]} Qg4+ {[%emt 0:01:05]} 34. Kf2 {[%emt 0:00:58]} Qh4+ {[%emt 0:00:12]} 1/2-1/2

[Event "LEM Niedersachsen-B-Open 2025"]
[Site "Verden"]
[Date "2025.01.05"]
[Round "7.35"]
[White "Seeber, Helmut"]
[Black "Rinke, Alexander"]
[Result "1-0"]
[ECO "D00"]
[WhiteElo "1695"]
[BlackElo "1550"]
[Annotator "NA RC"]
[PlyCount "57"]
[EventDate "2024.12.27"]
[EventType "swiss"]
[EventCountry "GER"]
[SourceTitle "playchess.com"]
[Source "ChessBase"]
[SourceQuality "1"]
[TimeControl "40/5400+30:1800+30"]

1. e4 {[%emt 0:00:04]} c6 {[%emt 0:00:15]} 2. d4 {[%emt 0:00:06]} d5 {[%emt 0:00:05]} 3. Nc3 {[%emt 0:00:07]} dxe4 {[%emt 0:00:05]} 4. f3 {[%emt 0:00:12]} exf3 {[%emt 0:00:05]} 5. Nxf3 {[%emt 0:00:09]} Nf6 {[%emt 0:00:04]} 6. Bc4 {[%emt 0:00:59]} Bf5 {[%emt 0:00:46]} 7. O-O {[%emt 0:00:56]} e6 {[%emt 0:01:06]} 8. Kh1 {[%emt 0:02:47]} h6 {[%emt 0:09:14]} 9. Bf4 {[%emt 0:04:27]} Be7 {[%emt 0:05:07]} 10. Qe2 {[%emt 0:00:31]} Nbd7 {[%emt 0:03:06]} 11. Rad1 {[%emt 0:05:24]} Nb6 {[%emt 0:04:06]} 12. Bb3 {[%emt 0:00:20]} Nbd5 {[%emt 0:02:21]} 13. Ne5 {[%emt 0:01:55]} Nxf4 {[%emt 0:02:10]} 14. Rxf4 {[%emt 1:19:33]} O-O {[%emt 1:09:00]} 15. Qf2 {[%emt 0:00:00]} Bd6 {[%emt 0:00:00]} 16. h3 {[%emt 0:00:00]} Qc7 {[%emt 0:00:00]} 17. Re1 {[%emt 0:00:00]} Nd7 {[%emt 0:00:00]} 18. Rxf5 {[%emt 0:00:00]} exf5 {[%emt 0:00:00]} 19. Nxf7 {[%emt 0:02:30]} Rxf7 {[%emt 0:02:30]} 20. Qxf5 {[%emt 0:00:30]} Nf6 {[%emt 0:00:30]} 21. Ne4 {[%emt 0:00:00]} Kf8 {[%emt 0:00:00]} 22. Bxf7 {[%emt 0:01:00]} Kxf7 {[%emt 0:01:00]} 23. Nxf6 {[%emt 0:00:30]} g6 {[%emt 0:00:30]} 24. Qe6+ {[%emt 0:00:00]} Kg7 {[%emt 0:00:00]} 25. Ne8+ {[%emt 0:00:00]} Rxe8 {[%emt 0:00:00]} 26. Qxe8 {[%emt 0:01:30]} h5 {[%emt 0:01:30]} 27. Re6 {[%emt 0:00:00]} Qf7 {[%emt 0:00:00]} 28. Qxf7+ {[%emt 0:01:00]} Kxf7 {[%emt 0:01:00]} 29. Rxd6 {[%emt 0:00:00]} 1-0